bitfinex/quotes_ETHUSD_20251124
["timestamp","ask_amount","ask_price","bid_price","bid_amount"]
[1763958453093,0.002,2816.1,2815.8,0.0583]
[1763958454500,0.002,2816.1,2814.7,0.1]
[1763958454501,0.1959,2815.9,2814.7,0.1]
[1763958455115,0.6657,2815.9,2814.7,0.1]
[1763958455301,0.73197546,2815.8,2814.5,0.0583]
[1763958455512,3.456831,2814.4,2812.6,0.0583]
[1763958455744,0.1959,2814.6,2808.2,10.1384707]
[1763958455745,6.31784296,2814.0,2812.4,0.0583]
[1763958455908,1.22100162,2813.4,2812.4,0.0583]
[1763958456106,0.96681873,2813.3,2812.6,0.1]
[1763958456323,0.73181873,2813.2,2812.6,0.1]
[1763958456659,0.235,2813.3,2812.6,0.1]
[1763958456862,0.235,2813.3,2812.4,0.0583]
[1763958457651,0.96681873,2813.3,2812.6,0.1]
[1763958457853,0.73181873,2813.2,2812.6,0.1]
[1763958458134,0.235,2813.8,2813.0,0.1]
[1763958458850,0.235,2813.8,2813.1,0.03554797]
[1763958459147,0.235,2813.8,2813.0,0.1]
[1763958459315,0.73159452,2813.8,2812.7,0.1583]
[1763958459520,0.96659452,2814.1,2813.0,0.1]
[1763958459716,0.96659452,2814.1,2812.4,1.28595357]
[1763958459717,1.19509452,2814.0,2812.5,0.1]
[1763958460046,1.19509452,2814.0,2812.6,0.09395429]
[1763958460243,0.73159452,2814.0,2813.0,0.1]
[1763958460446,0.90699264,2814.2,2813.0,0.1]
[1763958460447,0.235,2814.2,2813.0,0.1584]
[1763958460763,1.19540807,2814.1,2812.7,0.1]
[1763958460935,1.46054904,2814.1,2812.7,0.1]
[1763958461449,1.46054904,2814.1,2812.7,0.1584]
[1763958461755,0.99704904,2814.1,2812.7,0.1584]
[1763958461954,0.4635,2814.0,2812.7,0.1584]
[1763958462124,1.19540807,2814.0,2812.7,0.1584]
[1763958462725,0.73190807,2814.0,2813.0,0.1]
[1763958462925,0.73190807,2814.0,2813.1,0.03554797]
[1763958463219,0.73190807,2814.1,2813.3,0.1]
[1763958463442,0.73190807,2814.1,2812.8,0.0584]
[1763958463648,0.235,2814.2,2813.8,0.1]
[1763958464058,0.96690807,2814.2,2813.8,0.1]
[1763958464230,0.235,2814.2,2813.8,0.1]
[1763958464445,0.4635,2814.8,2813.9,0.0584]
[1763958464446,0.73278919,2814.6,2813.9,0.0584]
[1763958464646,2.02740243,2815.0,2813.9,0.0584]
[1763958464647,0.96778919,2814.7,2814.1,0.1]
[1763958464852,0.73278919,2814.6,2814.1,0.1]
[1763958465236,0.73278919,2814.6,2812.8,6.55284296]
[1763958465237,0.73278919,2814.6,2814.4,0.1]
[1763958465585,0.73278919,2814.6,2814.2,0.0584]
[1763958465586,1.41060162,2815.2,2814.2,0.0584]
[1763958465878,0.96823489,2815.1,2814.2,0.1584]
[1763958466182,0.96823489,2815.1,2813.0,3.55489328]
[1763958466183,0.73323489,2815.0,2814.0,0.1]
[1763958466489,0.73323489,2814.9,2814.6,0.1]
[1763958466779,0.235,2815.1,2814.6,0.1]
[1763958466780,0.73323489,2815.0,2814.6,0.1]
[1763958467140,0.73323489,2815.2,2814.6,0.1]
[1763958467372,0.73323489,2815.1,2814.6,0.1584]
[1763958467576,0.73323489,2815.4,2814.7,0.1]
[1763958467775,0.1959,2815.9,2814.8,0.1584]
[1763958467988,1.95530494,2815.8,2814.8,0.1]
[1763958468163,0.73430332,2815.7,2814.8,0.1]
[1763958468365,0.73430332,2815.7,2814.4,0.0584]
[1763958468366,0.73430332,2815.6,2814.4,0.0584]
[1763958468565,0.73430332,2815.6,2814.4,0.1]
[1763958468566,0.73430332,2815.5,2814.4,0.1]
[1763958468885,3.09729758,2815.4,2814.4,0.1]
[1763958469044,0.73430332,2815.3,2814.4,0.1]
[1763958469240,0.73430332,2815.2,2814.0,0.0584]
[1763958469437,0.73430332,2815.1,2814.4,0.1]
[1763958469680,0.73430332,2815.0,2814.4,0.1]
[1763958469859,0.73430332,2815.3,2814.7,0.1]
[1763958470062,0.73430332,2815.2,2814.7,0.1]
[1763958470261,0.73430332,2815.1,2814.7,0.1]
[1763958470475,0.73430332,2815.3,2814.9,0.1]
[1763958470734,0.73430332,2815.2,2815.1,0.1]
[1763958470850,0.73430332,2815.5,2815.2,0.1]
[1763958471052,0.73430332,2815.4,2815.0,0.0584]
[1763958471280,0.73604961,2815.6,2815.5,0.1]
[1763958471663,0.235,2815.7,2815.5,0.1]
[1763958471862,0.73604961,2815.9,2815.8,0.1]
[1763958472170,0.002,2816.1,2815.8,0.1]
[1763958473340,0.002,2816.1,2815.5,0.1]
[1763958473679,0.002,2816.1,2815.6,0.1]
[1763958475385,0.002,2816.1,2815.3,0.0584]
[1763958475386,0.002,2816.1,2815.3,0.1]
[1763958475567,0.6944,2816.1,2815.2,0.1]
[1763958475754,0.6944,2816.1,2815.3,0.1]
[1763958475755,1.786294,2816.1,2815.3,0.1]
[1763958475955,0.73604961,2816.0,2815.3,0.1]
[1763958476185,0.002,2816.1,2815.5,6.31784296]
[1763958476344,0.002,2816.1,2816.0,0.1]
[1763958476549,0.002,2816.1,2815.9,0.1]
[1763958477245,0.002,2816.1,2816.0,0.1]
[1763958478273,0.002,2816.1,2816.0,0.0584]
[1763958478478,0.002,2816.1,2815.9,0.1]
[1763958478976,0.002,2816.1,2815.8,0.1]
[1763958479175,0.4574,2816.7,2815.8,0.1]
[1763958479176,0.68349632,2816.9,2815.8,0.1]
[1763958479515,0.002,2817.6,2813.0,0.14234495]
[1763958479516,1.22652475,2818.4,2816.9,3.00009164]
[1763958479675,1.84178712,2818.6,2817.7,0.1]
[1763958479676,0.002,2818.6,2817.7,0.1]
[1763958479868,0.002,2818.6,2817.0,1.16779346]
[1763958479869,0.236,2818.5,2817.0,0.93179346]
[1763958480063,0.4594,2818.2,2816.8,0.1]
[1763958480502,0.4594,2818.2,2816.7,0.1851219]
[1763958480686,3.07403364,2818.1,2816.7,0.1851219]
[1763958480887,0.1896,2816.8,2816.7,2.19e-05]
[1763958481088,0.002,2818.2,2816.7,2.19e-05]
[1763958481264,0.002,2818.2,2816.9,0.1]
[1763958481465,0.002,2818.2,2817.6,0.1]
[1763958481781,0.002,2818.2,2817.9,0.1]
[1763958482508,0.002,2818.2,2817.9,0.1851]
[1763958482723,0.002,2818.2,2818.1,0.1]
[1763958483308,0.002,2818.2,2818.1,0.2851]
[1763958483613,0.002,2818.2,2818.1,3.83359011]
[1763958483815,0.002,2818.2,2818.1,4.57181576]
[1763958484312,0.002,2819.9,2818.1,4.57181576]
[1763958484313,0.002,2819.9,2819.4,0.1]
[1763958484477,0.002,2819.9,2819.1,0.1]
[1763958484681,0.002,2819.9,2818.2,0.1851]
[1763958484682,0.4574,2819.8,2818.6,0.1]
[1763958485096,0.4574,2819.8,2818.9,0.1]
[1763958485292,0.4574,2819.8,2818.8,0.1]
[1763958485488,0.4574,2819.7,2818.8,0.1]
[1763958485902,0.4574,2819.7,2818.4,0.1]
[1763958487221,0.4574,2819.7,2817.7,0.1851]
[1763958487426,0.4574,2819.7,2817.8,0.1]
[1763958488710,0.4574,2819.7,2818.0,0.1]
[1763958488913,0.4574,2819.7,2817.6,6.31784296]
[1763958489120,0.4574,2819.7,2818.9,0.1]
[1763958489404,0.4574,2819.7,2818.1,6.31784296]
[1763958489733,0.4574,2819.7,2818.7,0.1]
[1763958489938,0.4594,2819.7,2818.7,0.1]
[1763958490130,0.4594,2819.7,2818.6,0.1]
[1763958490634,0.4594,2819.7,2818.8,0.1]
[1763958491011,0.4594,2819.7,2818.6,0.1]
[1763958491213,0.4594,2819.7,2818.4,0.1861]
[1763958491424,0.4594,2819.7,2819.0,0.1]
[1763958491813,0.4594,2819.7,2818.4,0.1861]
[1763958491998,0.4594,2819.7,2818.5,0.1]
[1763958492946,0.4594,2819.7,2818.7,0.1]
[1763958493150,0.002,2819.7,2818.4,0.03648112]
[1763958493374,0.4544,2819.7,2818.8,0.1]
[1763958493661,0.4544,2819.7,2818.4,0.001]
[1763958493834,0.4544,2819.7,2818.5,0.1]
[1763958494179,0.002,2819.7,2818.7,0.1]
[1763958494354,0.4544,2819.7,2818.7,0.1]
[1763958494525,0.1971,2818.8,2818.4,0.001]
[1763958494851,0.4544,2819.7,2818.4,0.001]
[1763958494852,0.1971,2819.6,2818.4,0.101]
[1763958495046,0.6495,2819.6,2818.4,0.001]
[1763958495252,0.4524,2819.5,2818.4,0.001]
[1763958495625,1.35939264,2819.5,2818.4,0.001]
[1763958495826,0.90699264,2819.1,2818.1,0.001]
[1763958496026,0.1971,2817.9,2816.7,2.19e-05]
[1763958496257,0.236,2817.8,2816.7,2.19e-05]
[1763958496431,0.6884,2817.8,2816.7,2.19e-05]
[1763958496834,0.4524,2817.7,2816.7,2.19e-05]
[1763958497075,0.1971,2816.8,2816.7,2.19e-05]
[1763958497448,0.6495,2816.8,2816.7,2.19e-05]
[1763958498334,0.4524,2817.5,2816.7,2.19e-05]
[1763958498672,0.4524,2817.5,2816.7,0.1000219]
[1763958498830,0.4524,2817.5,2816.7,2.19e-05]
[1763958498831,0.1971,2816.8,2816.7,2.19e-05]
[1763958499031,0.4524,2817.5,2816.7,2.19e-05]
[1763958499369,0.1971,2817.4,2816.7,2.19e-05]
[1763958500254,0.236,2817.8,2817.0,0.1]
[1763958501066,0.236,2817.8,2816.7,0.03552443]
[1763958501377,0.236,2817.8,2816.7,2.19e-05]
[1763958501378,0.6884,2817.8,2816.7,2.19e-05]
[1763958501897,0.4524,2817.7,2816.7,2.19e-05]
[1763958502050,0.1971,2816.8,2816.7,2.19e-05]
[1763958503477,0.6495,2816.8,2816.7,2.19e-05]
[1763958504749,0.1971,2816.8,2816.7,2.19e-05]
[1763958505993,0.4524,2817.2,2816.7,2.19e-05]
[1763958506150,0.1971,2817.1,2816.7,2.19e-05]
[1763958506688,0.1971,2817.3,2816.7,2.19e-05]
[1763958506981,0.4524,2817.6,2816.9,0.1]
[1763958507347,0.4524,2817.6,2816.7,2.19e-05]
[1763958508602,0.4524,2817.6,2816.8,0.1]
[1763958509492,0.238,2817.8,2816.7,0.1000219]
[1763958509702,0.002,2817.8,2816.8,0.22360127]
[1763958509901,0.002,2817.8,2816.9,1.12435732]
[1763958510113,0.4544,2817.8,2816.7,0.1000219]
[1763958510302,0.4544,2817.8,2816.7,2.19e-05]
[1763958511732,0.4544,2817.8,2816.7,0.22362443]
[1763958511733,0.002,2817.8,2816.7,0.22362443]
[1763958511919,0.002,2817.8,2817.3,0.1]
[1763958512323,0.002,2817.8,2817.4,0.1881]
[1763958512528,0.002,2817.8,2817.0,0.1881]
[1763958512828,0.002,2817.8,2817.1,0.1]
[1763958513337,0.002,2817.8,2817.4,0.1]
[1763958513701,0.4544,2817.8,2817.0,0.1]
[1763958514221,0.002,2817.8,2817.0,0.1]
[1763958514425,0.002,2817.8,2817.3,0.1]
[1763958515047,0.002,2817.8,2817.1,0.1]
[1763958515357,0.4544,2817.8,2817.1,0.1]
[1763958515520,0.002,2817.8,2817.1,0.1]
[1763958516319,0.002,2817.8,2816.8,0.1]
[1763958516758,0.4794,2817.8,2816.8,0.1]
[1763958517470,0.4794,2817.8,2817.0,0.1]
[1763958517633,0.4794,2817.8,2816.7,0.1881219]
[1763958517634,0.4794,2817.8,2816.8,0.1]
[1763958518954,0.4794,2817.8,2816.7,0.03552443]
[1763958519157,0.002,2817.8,2817.3,0.1]
[1763958519464,0.4794,2817.8,2817.0,0.1]
[1763958519696,0.4794,2817.8,2816.7,2.19e-05]
[1763958520473,0.4794,2817.8,2816.7,0.1000219]
[1763958521062,0.4794,2817.8,2816.7,2.19e-05]
[1763958522391,0.4794,2817.8,2816.7,0.1000219]
[1763958524168,0.4794,2817.8,2816.7,2.19e-05]
[1763958524902,0.1931,2816.8,2816.7,2.19e-05]
[1763958525202,0.235,2817.7,2816.7,2.19e-05]
[1763958525353,0.4513,2817.6,2816.7,2.19e-05]
[1763958525556,0.1931,2816.8,2816.7,2.19e-05]
[1763958525752,0.4513,2817.6,2816.7,2.19e-05]
[1763958526588,0.1931,2816.8,2816.7,2.19e-05]
[1763958526960,0.6444,2816.8,2816.7,2.19e-05]
[1763958527684,0.235,2817.7,2816.7,0.1882219]
[1763958527855,0.6863,2817.7,2816.7,0.2882219]
[1763958528255,0.4513,2817.6,2816.7,2.19e-05]
[1763958528876,0.1931,2816.8,2816.7,2.19e-05]
[1763958529288,0.4513,2817.3,2816.7,2.19e-05]
[1763958530281,0.235,2817.7,2816.7,2.19e-05]
[1763958530478,0.4513,2817.6,2816.7,2.19e-05]
[1763958534394,0.235,2817.7,2816.7,0.1882219]
[1763958534598,0.002,2817.8,2816.7,0.1882219]
[1763958534811,0.002,2817.8,2817.2,0.1]
[1763958536898,0.002,2817.8,2817.2,0.2882]
[1763958537122,0.002,2817.8,2817.5,0.1]
[1763958537613,0.4637,2817.6,2816.7,2.19e-05]
[1763958538014,0.4637,2817.6,2816.8,0.1]
[1763958538444,0.4533,2817.8,2816.8,0.1]
[1763958539214,0.002,2818.1,2817.7,0.2882]
[1763958539419,0.002,2818.1,2818.0,0.2862]
[1763958539625,0.002,2818.1,2817.8,0.72811697]
[1763958539834,0.002,2818.1,2817.4,0.1]
[1763958540039,0.002,2818.1,2817.8,0.1]
[1763958540243,0.002,2818.1,2817.2,0.1]
[1763958540555,0.4533,2818.1,2817.1,0.1]
[1763958541239,0.4533,2818.1,2816.8,0.1862]
[1763958541398,0.4533,2818.1,2817.0,0.1]
[1763958541945,0.4533,2818.1,2817.2,0.1]
[1763958542097,0.4533,2818.1,2816.9,7.0929697]
[1763958542437,0.4533,2818.1,2817.0,0.70929697]
[1763958542636,0.4533,2818.1,2817.1,0.1]
[1763958543923,0.4533,2818.1,2817.0,0.70929697]
[1763958544124,0.4533,2818.1,2816.9,0.1]
[1763958544441,0.4533,2818.1,2816.7,2.19e-05]
[1763958545002,0.4533,2818.1,2816.9,0.1]
[1763958545337,0.4533,2818.1,2816.7,2.19e-05]
[1763958545639,0.4533,2818.1,2816.9,0.1]
[1763958545855,0.4533,2818.1,2817.2,0.1]
[1763958546404,0.4533,2818.1,2816.9,0.1862]
[1763958546643,0.4533,2818.1,2817.0,0.1]
[1763958548546,0.4533,2818.1,2817.2,0.1]
[1763958548702,0.4533,2818.1,2817.3,0.1]
[1763958549707,0.4533,2818.1,2817.2,0.1]
[1763958551832,0.4533,2818.1,2816.7,2.19e-05]
[1763958552038,0.4533,2818.1,2816.8,0.1]
[1763958552235,0.4533,2818.1,2816.8,0.1862]
[1763958552441,0.4533,2818.1,2817.1,0.1]
[1763958552751,0.4533,2818.1,2817.4,0.1]
[1763958553518,0.002,2818.1,2817.4,0.1]
[1763958554453,0.4996,2818.1,2817.1,0.1]
[1763958555551,0.4996,2818.1,2816.9,0.1862]
[1763958555552,0.4996,2818.1,2816.9,0.1]
[1763958555724,0.4996,2818.1,2817.1,0.1]
[1763958556449,0.4996,2818.1,2816.7,0.1862219]
[1763958556756,0.4996,2818.1,2817.1,0.1]
[1763958557750,0.4996,2818.1,2817.4,0.1]
[1763958557954,0.002,2818.1,2817.5,0.03549245]
[1763958558250,0.002,2818.1,2817.7,0.1]
[1763958558464,0.002,2818.1,2818.0,0.2862]
[1763958558655,0.002,2818.1,2818.0,10.72783129]
[1763958558854,0.002,2818.7,2818.6,0.1]
[1763958559054,0.002,2818.7,2818.6,7.17521526]
[1763958559221,0.002,2818.7,2818.6,7.35741526]
[1763958560926,0.002,2818.7,2818.6,10.9052759]
[1763958561556,0.002,2818.7,2818.6,7.35741526]
[1763958561756,0.002,2818.7,2818.6,8.09315679]
[1763958562964,0.002,2818.7,2818.6,0.91794153]
[1763958563263,0.002,2818.7,2818.3,0.1]
[1763958563459,0.002,2818.7,2818.0,0.1]
[1763958564156,0.002,2818.7,2818.3,0.1]
[1763958564786,0.4976,2818.6,2818.3,0.1]
[1763958565002,0.4976,2818.6,2818.2,0.1]
[1763958565170,0.4976,2818.6,2818.0,0.1]
[1763958565553,0.002,2818.7,2818.2,0.1]
[1763958566100,0.4976,2818.6,2818.0,0.1]
[1763958566388,0.002,2818.7,2818.3,0.1]
[1763958568395,0.002,2818.7,2818.6,7.17521526]
[1763958568691,0.002,2818.7,2818.6,7.9196849]
[1763958568988,0.002,2818.7,2818.6,8.1018849]
[1763958569202,0.002,2819.0,2818.6,8.0018849]
[1763958569404,0.002,2819.0,2818.9,0.2802]
[1763958569953,0.002,2819.0,2818.7,0.1]
[1763958570390,0.002,2819.0,2818.9,0.1]
[1763958570887,0.002,2819.0,2818.4,0.1]
[1763958571062,0.002,2819.0,2818.7,0.1]
[1763958571263,0.1979,2818.9,2818.7,0.1]
[1763958571479,0.4669,2818.8,2818.1,0.1]
[1763958571791,0.4669,2818.8,2818.3,0.1]
[1763958571957,0.002,2819.0,2818.3,0.03548238]
[1763958572284,0.002,2819.0,2818.7,0.1]
[1763958572675,0.002,2819.0,2818.4,0.79284976]
[1763958572878,0.002,2819.0,2818.4,0.1]
[1763958573457,0.002,2819.0,2818.2,0.03548364]
[1763958573653,0.002,2819.0,2818.7,0.1]
[1763958574886,0.4669,2818.8,2818.3,0.1]
[1763958575085,0.002,2819.0,2818.3,0.1]
[1763958576582,0.4642,2819.0,2817.9,7.12701526]
[1763958576760,0.4642,2819.0,2818.3,0.1]
[1763958577097,0.002,2819.0,2818.6,0.1]
[1763958577293,0.002,2819.0,2818.3,7.07321526]
[1763958577294,0.002,2819.0,2818.9,0.1]
[1763958577683,0.002,2819.0,2818.9,0.2802]
[1763958577990,0.002,2819.0,2818.9,0.1]
[1763958578196,0.002,2819.0,2818.3,7.12701526]
[1763958578362,0.002,2819.0,2818.6,0.1]
[1763958578796,0.1894,2818.9,2818.5,0.1]
[1763958579195,0.002,2819.0,2818.5,0.1]
[1763958579604,0.002,2819.0,2818.9,0.1]
[1763958580398,0.002,2819.0,2818.6,0.1]
[1763958581514,0.6516,2818.9,2818.4,0.71270153]
[1763958581681,0.002,2819.0,2818.7,0.1]
[1763958582510,0.002,2819.0,2818.9,0.2802]
[1763958583015,0.002,2819.0,2818.9,0.49587483]
[1763958583178,0.002,2819.3,2819.2,0.1]
[1763958583382,0.002,2819.3,2819.2,8.2604079]
[1763958583629,0.002,2819.3,2819.2,2.94076914]
[1763958583830,0.002,2819.3,2819.2,0.1802]
[1763958584003,0.002,2819.3,2819.2,0.1]
[1763958584718,0.002,2819.3,2819.1,0.1]
[1763958585510,0.002,2819.3,2819.2,0.1]
[1763958585714,0.002,2819.3,2819.2,0.2802]
[1763958586111,0.002,2819.3,2819.2,7.17321526]
[1763958586289,0.002,2819.3,2819.2,0.83534153]
[1763958586487,0.002,2819.3,2819.2,0.1]
[1763958587017,0.002,2819.3,2818.7,0.1802]
[1763958587018,0.4826,2819.3,2818.6,0.1802]
[1763958587179,0.9361,2819.3,2818.9,0.1]
[1763958587381,0.9361,2819.3,2819.0,0.1]
[1763958587690,0.002,2819.3,2819.0,0.1]
[1763958587921,0.002,2819.3,2819.2,0.1]
[1763958589005,0.9361,2819.3,2818.6,0.1]
[1763958589378,0.9361,2819.3,2819.0,0.1]
[1763958589814,0.234,2819.8,2819.0,0.1]
[1763958589815,0.04615,2819.8,2819.0,0.1]
[1763958590080,0.234,2819.9,2818.7,0.1]
[1763958590383,10.17,2820.7,2819.0,0.1]
[1763958590384,0.4175,2820.1,2819.0,0.1]
[1763958590590,0.4806,2819.1,2818.5,0.1854]
[1763958590784,0.4806,2819.1,2818.7,0.1]
[1763958591031,10.17,2820.0,2818.7,0.1]
[1763958591190,1.05875,2819.9,2818.7,0.4767]
[1763958591390,0.4175,2820.1,2819.3,0.1]
[1763958591889,0.4535,2820.0,2818.6,0.234]
[1763958592086,0.4535,2820.0,2818.8,0.1]
[1763958592485,0.4535,2820.0,2818.9,0.1]
[1763958592684,0.4535,2820.0,2818.5,0.1854]
[1763958592685,0.4535,2820.0,2818.6,0.0354786]
[1763958592921,0.4535,2820.0,2819.1,0.1]
[1763958593509,0.4535,2820.0,2818.8,0.1]
[1763958593816,0.4535,2820.0,2818.6,0.1]
[1763958594421,0.4535,2820.0,2818.6,0.4767]
[1763958594585,0.4535,2820.0,2819.1,0.1]
[1763958595807,0.4535,2820.0,2819.1,0.1854]
[1763958596122,0.4535,2820.0,2819.0,0.1]
[1763958596325,0.4535,2820.0,2818.9,0.1]
[1763958596723,0.4535,2820.0,2819.3,0.1]
[1763958596923,0.4535,2820.0,2819.1,0.1]
[1763958598308,0.4535,2820.0,2819.2,0.1]
[1763958598508,0.4555,2820.0,2819.2,0.1]
[1763958598822,0.4555,2820.0,2819.0,0.1]
[1763958599334,0.4555,2820.0,2819.1,0.2854]
[1763958599510,0.002,2820.0,2819.4,0.1]
[1763958600227,0.002,2820.0,2819.9,0.4545]
[1763958600547,0.002,2820.0,2819.9,0.5545]
[1763958601038,0.6693,2820.0,2819.2,0.1]
[1763958601214,0.0045,2819.7,2819.2,0.1]
[1763958601737,0.0045,2819.7,2818.9,0.1]
[1763958601738,0.458,2819.7,2818.9,0.1]
[1763958602555,0.458,2819.7,2818.8,0.001]
[1763958602556,0.1835,2819.9,2819.2,0.1]
[1763958602763,0.002,2820.0,2819.9,0.1]
[1763958602968,0.002,2820.0,2819.5,0.1]
[1763958603257,0.002,2820.0,2819.2,0.90699264]
[1763958603460,0.002,2820.0,2819.1,7.55511526]
[1763958603461,0.1218,2819.9,2819.3,0.94621079]
[1763958603622,0.5753,2819.9,2819.0,0.1]
[1763958603822,0.5753,2819.9,2818.8,0.101]
[1763958604066,0.4535,2819.8,2818.8,0.101]
[1763958604664,0.4535,2819.8,2818.8,0.001]
[1763958605322,0.2791,2818.9,2818.8,0.001]
[1763958605759,0.32186106,2819.7,2818.8,0.001]
[1763958605760,0.4535,2819.4,2818.8,0.001]
[1763958607059,0.283,2818.9,2818.8,0.001]
[1763958607362,0.4526,2819.6,2818.8,0.001]
[1763958607528,0.1218,2819.9,2818.8,0.001]
[1763958607529,0.4526,2819.3,2818.8,0.001]
[1763958608644,0.1218,2819.9,2818.8,0.001]
[1763958608842,0.4526,2819.6,2818.8,0.001]
[1763958609155,0.1218,2819.9,2819.0,0.1]
[1763958609352,0.1218,2819.9,2819.1,0.84740153]
[1763958609567,0.5744,2819.9,2819.1,0.84740153]
[1763958610153,0.5744,2819.9,2819.1,1.04480153]
[1763958610341,0.1011,2819.9,2819.1,1.42580153]
[1763958610542,0.4526,2820.1,2819.4,0.1]
[1763958610852,0.0984,2820.0,2819.1,0.74740153]
[1763958611057,0.0984,2820.0,2818.8,0.101]
[1763958611262,0.3936,2819.9,2818.8,0.101]
[1763958611652,0.3936,2819.9,2818.9,0.1]
[1763958611861,0.3936,2819.9,2819.0,0.1]
[1763958612242,0.71549213,2819.9,2819.0,0.1]
[1763958612555,0.71549213,2819.9,2818.9,0.1]
[1763958612556,0.3936,2819.9,2818.9,0.1]
[1763958612760,0.3936,2819.8,2818.9,0.1]
[1763958612960,0.3936,2819.8,2818.8,0.001]
[1763958613466,0.0984,2818.9,2818.8,0.001]
[1763958614156,0.492,2818.9,2818.8,0.001]
[1763958614359,0.0984,2819.3,2818.8,0.4587]
[1763958615075,0.0984,2819.3,2818.8,0.001]
[1763958615544,0.492,2819.3,2818.8,0.001]
[1763958615940,0.0984,2818.9,2818.8,0.001]
[1763958616544,0.0984,2819.3,2818.8,0.001]
[1763958617682,0.3936,2819.2,2818.8,0.001]
[1763958617843,0.0984,2818.9,2818.8,0.001]
[1763958618786,0.0984,2819.3,2818.8,0.001]
[1763958619146,0.32184085,2819.5,2818.8,0.101]
[1763958619358,0.32184085,2819.5,2818.9,0.481]
[1763958619563,0.234,2819.6,2818.8,0.001]
[1763958620381,0.6276,2819.6,2818.8,0.001]
[1763958620748,0.3936,2819.5,2818.8,0.001]
[1763958621556,0.234,2819.6,2818.8,0.001]
[1763958622745,0.42018315,2819.7,2818.8,0.001]
[1763958623281,0.0984,2819.7,2818.9,0.481]
[1763958623485,0.0984,2819.7,2819.1,0.1]
[1763958623899,0.0984,2819.7,2819.2,0.1974]
[1763958624256,0.1004,2820.0,2819.2,0.6784]
[1763958624451,0.1004,2820.0,2819.4,0.1]
[1763958624970,0.002,2820.0,2819.9,0.4577]
[1763958625494,0.002,2820.0,2819.9,0.9387]
[1763958625701,0.002,2820.0,2819.9,1.0387]
[1763958626304,0.002,2820.0,2819.6,0.1]
[1763958626661,0.002,2820.0,2819.9,0.5577]
[1763958627265,0.002,2820.0,2819.7,0.1]
[1763958627773,0.002,2820.0,2819.5,0.481]
[1763958627963,0.002,2820.0,2819.5,1.23732846]
[1763958628508,0.002,2820.0,2819.9,0.4577]
[1763958628665,0.002,2820.0,2819.7,0.1]
[1763958629090,0.002,2820.0,2819.7,0.581]
[1763958629263,0.002,2821.4,2820.5,0.4577]
[1763958629461,0.002,2821.4,2820.6,0.4577]
[1763958629696,0.002,2821.4,2820.9,0.1]
[1763958630062,0.002,2821.4,2821.0,0.581]
[1763958630267,0.002,2821.4,2821.3,0.6551]
[1763958630464,0.002,2821.4,2821.0,0.481]
[1763958630465,0.002,2821.4,2821.0,0.1]
[1763958630673,0.002,2821.4,2820.2,0.6784]
[1763958631021,0.1004,2820.3,2819.6,0.1]
[1763958631158,0.38178873,2821.4,2819.6,0.51646602]
[1763958631363,0.1004,2820.7,2820.1,0.1]
[1763958631768,0.1004,2820.7,2820.1,0.2974]
[1763958632166,0.1004,2821.0,2820.2,0.481]
[1763958632377,0.1004,2821.0,2820.4,0.1]
[1763958632724,0.1004,2821.0,2820.2,0.481]
[1763958632725,0.002,2821.4,2820.2,0.481]
[1763958633005,0.002,2821.4,2820.7,0.1]
[1763958633006,0.002,2821.2,2820.7,0.1]
[1763958633410,0.002,2821.2,2820.8,0.481]
[1763958633637,0.002,2821.2,2821.1,0.1974]
[1763958633775,0.002,2821.2,2820.9,0.1]
[1763958634188,0.002,2821.2,2820.9,0.581]
[1763958634365,0.002,2821.2,2821.1,0.1974]
[1763958635107,0.002,2821.2,2821.1,1.1361]
[1763958635315,0.002,2821.2,2820.5,0.481]
[1763958635614,0.002,2821.2,2821.1,0.7551]
[1763958635965,0.002,2821.2,2821.1,1.2361]
[1763958636214,0.002,2821.4,2821.3,0.1]
[1763958636584,0.002,2821.4,2821.3,0.5765]
[1763958636870,0.002,2821.4,2821.0,0.1]
[1763958637083,0.002,2821.4,2821.3,0.4765]
[1763958637284,0.002,2821.4,2821.1,0.1833]
[1763958637574,0.002,2821.4,2821.1,0.7389]
[1763958638166,0.002,2821.4,2821.3,0.4765]
[1763958638371,0.002,2821.4,2821.3,1.0321]
[1763958638566,0.002,2821.4,2821.3,8.9213772]
[1763958638873,0.002,2821.4,2821.3,0.91046772]
[1763958639066,0.002,2821.4,2821.2,0.1]
[1763958639281,0.002,2821.4,2820.9,0.4556]
[1763958639464,0.002,2821.4,2820.9,0.5556]
[1763958640184,0.002,2821.4,2821.1,0.1]
[1763958640381,0.002,2821.4,2821.2,0.1833]
[1763958640577,0.002,2821.4,2821.3,0.4765]
[1763958640776,0.002,2821.4,2821.3,1.0321]
[1763958641200,0.002,2821.4,2821.3,1.85186846]
[1763958641520,0.002,2821.4,2821.3,1.39626846]
[1763958641683,0.002,2821.4,2821.3,0.91976846]
[1763958641866,0.002,2821.4,2821.3,1.85186846]